bitfinex-derivatives/quotes_ETHF0:USTF0_20210401
["timestamp","ask_amount","ask_price","bid_price","bid_amount"]
[1617238984968,90.0522,1925.8,1925.6,0.31700639]
[1617238985169,90.0522,1925.8,1925.5,0.31717401]
[1617238985571,90.0522,1925.8,1925.3,6.61180754]
[1617238985971,90.0522,1925.8,1925.4,6.92763726]
[1617238986372,2.90695,1925.5,1925.4,9.83458726]
[1617238986573,2.90695,1925.5,1925.4,2.90695]
[1617238987673,2.90695,1925.5,1925.4,7.10771078]
[1617238990379,2.90695,1925.5,1925.4,6.46361078]
[1617238990982,2.90695,1925.5,1925.4,2.26285]
[1617238996993,2.90695,1925.5,1925.3,4.20191464]
[1617238997792,2.90695,1925.5,1925.2,4.20212783]
[1617238998193,2.90695,1925.5,1925.0,4.19844147]
[1617238998694,90.0522,1925.8,1925.1,2.90695]
[1617239000593,2.90695,1925.2,1925.1,2.90695]
[1617239003799,66.54055,1925.2,1925.1,2.90695]
[1617239008005,66.54055,1925.2,1925.1,3.22571255]
[1617239008208,66.54055,1925.2,1925.1,7.41802028]
[1617239008807,2.90695,1925.2,1925.1,7.41802028]
[1617239010206,2.90695,1925.2,1925.1,3.22571255]
[1617239011108,2.90695,1925.2,1925.1,7.41666951]
[1617239011910,2.90695,1925.2,1925.1,91.99956951]
[1617239012110,2.90695,1925.2,1925.1,93.8248231]
[1617239012512,2.90695,1925.2,1925.1,9.2419231]
[1617239012813,61.50165,1925.2,1925.1,3.22571255]
[1617239014313,2.90695,1925.2,1925.1,3.22571255]
[1617239016415,62.34165,1925.2,1925.1,3.22571255]
[1617239018822,62.34165,1925.2,1925.1,7.41736906]
[1617239020924,2.90695,1925.2,1925.1,8.59346906]
[1617239021125,2.90695,1925.2,1925.1,75.64396906]
[1617239021326,67.0505,1925.8,1925.1,75.64396906]
[1617239021526,1.0518,1926.5,1925.1,8.59346906]
[1617239021728,1.0518,1926.5,1925.8,71.6331]
[1617239021927,1.0518,1926.5,1925.8,72.6287]
[1617239022127,1.0518,1926.5,1925.9,0.31993516]
[1617239022527,30.0,1927.3,1925.9,0.31993516]
[1617239022727,30.0,1927.3,1926.6,62.5347]
[1617239022926,30.0,1927.3,1926.6,63.665]
[1617239024729,30.0,1927.6,1926.6,63.665]
[1617239024927,2.90695,1926.7,1926.6,63.665]
[1617239026231,2.90695,1926.7,1926.6,1.1303]
[1617239026433,2.90695,1926.7,1926.6,1.44932929]
[1617239028033,2.90695,1926.7,1926.6,0.31902929]
[1617239028233,2.90695,1926.7,1926.6,77.26352929]
[1617239031437,2.90695,1926.7,1926.6,78.52732929]
[1617239033041,2.90695,1926.7,1926.6,77.26352929]
[1617239035843,2.90695,1926.7,1926.6,0.31902929]
[1617239036044,64.5973,1926.6,1926.2,4.18534739]
[1617239036244,65.6384,1926.6,1926.3,0.31926235]
[1617239036645,65.6384,1926.6,1926.1,0.3194953]
[1617239036845,2.90695,1926.2,1925.9,0.31945847]
[1617239037144,2.90695,1926.2,1926.1,0.31956172]
[1617239037544,2.90695,1926.2,1925.7,64.5973]
[1617239037545,2.90695,1926.2,1926.0,0.31934698]
[1617239037944,2.90695,1926.2,1926.1,4.19419796]
[1617239038144,2.90695,1926.2,1926.1,0.31918263]
[1617239040247,2.90695,1926.2,1926.1,61.73888263]
[1617239040648,2.90695,1926.2,1926.1,63.56374521]
[1617239040846,2.90695,1926.2,1926.1,2.14404521]
[1617239041446,2.90695,1926.2,1925.9,4.19938447]
[1617239041645,4.14645,1926.2,1925.9,4.19938447]
[1617239041847,4.14645,1926.2,1926.0,0.31828261]
[1617239042248,4.14645,1926.2,1925.9,4.52160989]
[1617239042647,4.14645,1926.2,1926.0,0.31797984]
[1617239042847,4.14645,1926.2,1925.7,7.22414317]
[1617239042848,4.14645,1926.2,1925.8,4.20421665]
[1617239043147,4.14645,1926.2,1925.9,0.3178935]
[1617239043947,2.90695,1926.2,1925.9,0.3178935]
[1617239044850,2.90695,1926.0,1925.7,6.03053885]
[1617239045250,2.90695,1926.0,1925.8,4.52321919]
[1617239045850,2.90695,1926.0,1925.9,0.31814386]
[1617239046551,2.90695,1926.0,1925.9,2.14321215]
[1617239046752,2.90695,1926.0,1925.9,1.82506829]
[1617239048255,2.90695,1926.0,1925.9,1.19236829]
[1617239049555,2.90695,1926.0,1925.9,1.51023091]
[1617239049955,2.90695,1926.0,1925.9,6.92454583]
[1617239050358,30.0,1927.3,1925.9,1.51023091]
[1617239050557,30.0,1927.3,1926.6,71.7044]
[1617239050760,30.0,1927.3,1926.6,72.907]
[1617239050969,2.90695,1926.7,1926.6,72.907]
[1617239056065,2.90695,1926.7,1926.6,71.7044]
[1617239062675,30.0,1927.3,1926.6,71.7044]
[1617239063075,2.90695,1926.7,1926.6,71.7044]
[1617239064479,2.90695,1926.7,1926.5,4.20492329]
[1617239064881,2.90695,1926.7,1926.5,82.13342329]
[1617239065280,2.90695,1926.7,1926.6,1.82478761]
[1617239066082,2.90695,1926.7,1926.5,5.55602329]
[1617239066282,80.68345,1926.7,1926.5,5.55602329]
[1617239066682,80.68345,1926.7,1926.5,1.3511]
[1617239066881,80.68345,1926.7,1926.4,4.21022833]
[1617239067082,80.68345,1926.7,1926.3,6.03563796]
[1617239067283,2.90695,1926.5,1926.3,6.03563796]
[1617239068383,2.90695,1926.5,1926.3,1.82490775]
[1617239068583,3.95655,1926.5,1926.3,1.82490775]
[1617239068984,3.95655,1926.5,1926.0,5.41664702]
[1617239068985,3.95655,1926.5,1926.1,4.21407557]
[1617239069184,2.90695,1926.2,1926.1,4.21407557]
[1617239069983,2.90695,1926.2,1926.0,4.21512122]
[1617239075690,3.96475,1926.2,1926.0,4.21512122]
[1617239076589,3.96475,1926.2,1925.9,4.22000162]
[1617239077289,2.90695,1926.0,1925.9,4.22000162]
[1617239077690,2.90695,1926.0,1925.8,5.42800021]
[1617239078090,2.90695,1926.0,1925.9,4.22226739]
[1617239079090,2.90695,1926.0,1925.8,5.42777642]
[1617239080393,2.90695,1926.0,1925.9,4.22380962]
[1617239081095,2.90695,1926.0,1925.8,5.42777642]
[1617239081794,2.90695,1926.0,1925.9,4.22402378]
[1617239082796,2.90695,1926.0,1925.8,5.43023244]
[1617239083197,2.90695,1926.0,1925.9,0.31817441]
[1617239083601,2.90695,1926.0,1925.9,5.74645454]
[1617239084699,2.90695,1926.0,1925.9,0.31817441]
[1617239085300,2.90695,1926.0,1925.9,6.95255502]
[1617239085701,2.90695,1926.0,1925.9,0.31817441]
[1617239086901,2.90695,1926.0,1925.9,5.74860192]
[1617239087200,2.90695,1926.0,1925.9,0.31817441]
[1617239087501,2.90695,1926.0,1925.9,5.7482302]
[1617239096114,2.90695,1926.0,1925.9,0.31817441]
[1617239096512,2.90695,1926.0,1925.9,5.74690444]
[1617239097012,4.14815,1926.0,1925.9,5.74690444]
[1617239097611,4.14815,1926.0,1925.9,0.31817441]
[1617239101417,4.14815,1926.0,1925.8,5.42998811]
[1617239101819,4.14815,1926.0,1925.9,4.22585016]
[1617239102226,67.8402,1925.9,1925.8,4.22631865]
[1617239104323,67.8402,1925.9,1925.7,4.22783823]
[1617239104522,67.8402,1925.9,1925.8,4.22777294]
[1617239111430,2.90695,1926.0,1925.8,4.22777294]
[1617239111832,2.90695,1926.0,1925.9,64.0332]
[1617239112432,2.90695,1926.0,1925.9,65.85875397]
[1617239113233,2.90695,1926.0,1925.9,70.08702211]
[1617239114234,2.90695,1926.0,1925.9,65.85875397]
[1617239114636,2.90695,1926.0,1925.9,70.08845958]
[1617239115238,2.90695,1926.0,1925.9,65.85875397]
[1617239118044,4.07175,1926.0,1925.9,65.85875397]
[1617239119642,2.90695,1926.0,1925.9,65.45825397]
[1617239121445,4.01905,1926.0,1925.9,65.45825397]
[1617239123246,4.01905,1926.0,1925.9,69.69282145]
[1617239123948,4.01905,1926.0,1925.9,6.06012145]
[1617239124148,4.01905,1926.0,1925.9,1.82555397]
[1617239124348,4.01905,1926.0,1925.8,4.2342768]
[1617239124550,76.1098,1925.9,1925.8,4.2342768]
[1617239124749,76.1098,1925.9,1925.8,2.6694768]
[1617239125149,76.1098,1925.9,1925.6,5.44407018]
[1617239125349,76.1098,1925.9,1925.5,5.44767019]
[1617239125552,76.1098,1925.9,1925.4,5.4489505]
[1617239125749,2.90695,1925.5,1925.4,5.4489505]
[1617239126150,2.90695,1925.5,1925.4,5.76804756]
[1617239126349,4.20065,1925.5,1925.4,5.76804756]
[1617239126551,4.20065,1925.5,1925.4,0.31909706]
[1617239126750,4.20065,1925.5,1925.3,8.35869981]
[1617239127952,4.20065,1925.5,1925.4,5.45138456]
[1617239128352,4.20065,1925.5,1925.3,8.35844601]
[1617239128552,4.20065,1925.5,1925.4,5.45159923]
[1617239128752,2.90695,1925.5,1925.4,5.45159923]
[1617239130858,2.90695,1925.5,1925.3,2.90695]
[1617239131255,73.9192,1925.4,1925.3,2.90695]
[1617239132656,73.9192,1925.4,1925.3,8.35325304]
[1617239132856,2.90695,1925.5,1925.3,8.67175943]
[1617239133057,2.90695,1925.5,1925.4,86.9052]
[1617239133459,2.90695,1925.5,1925.4,88.73092434]
[1617239136860,2.90695,1925.5,1925.4,94.17515158]
[1617239137261,2.90695,1925.5,1925.4,88.73092434]
[1617239137462,2.90695,1925.5,1925.4,89.04909694]
[1617239137663,2.90695,1925.5,1925.4,94.49129216]
[1617239137863,2.90695,1925.5,1925.4,94.17311956]
[1617239138062,2.90695,1925.5,1925.4,88.73092434]
[1617239142268,2.90695,1925.5,1925.4,1.82572434]
[1617239142871,84.72345,1925.5,1925.4,1.82572434]
[1617239143168,84.72345,1925.5,1925.3,8.34966197]
[1617239143369,84.72345,1925.5,1925.4,0.31830592]
[1617239143969,84.72345,1925.5,1925.3,8.34966197]
[1617239144369,84.72345,1925.5,1925.4,0.31834773]
[1617239144870,84.72345,1925.5,1925.4,5.7598461]
[1617239145070,2.90695,1925.5,1925.4,5.7598461]
[1617239146175,2.90695,1925.5,1925.4,0.31834773]
[1617239148077,2.90695,1925.5,1925.4,5.76090647]
[1617239149978,2.90695,1925.5,1925.4,0.31834773]
[1617239151979,2.90695,1925.5,1925.4,6.98066003]
[1617239152380,2.90695,1925.5,1925.4,0.31834773]
[1617239152981,2.90695,1925.5,1925.4,6.98066731]
[1617239153781,2.90695,1925.5,1925.4,0.31834773]
[1617239156683,2.90695,1925.5,1925.4,78.79504773]
[1617239157183,2.90695,1925.5,1925.4,87.28516187]
[1617239157583,2.90695,1925.5,1925.4,8.80846187]
[1617239157783,2.90695,1925.5,1925.4,6.98270457]
[1617239158083,2.90695,1925.5,1925.4,0.31834773]
[1617239158484,69.92825,1925.5,1925.4,0.31834773]
[1617239159385,2.90695,1925.5,1925.4,0.31834773]
[1617239159585,2.90695,1925.5,1925.4,5.45647441]
[1617239159985,2.90695,1925.5,1925.3,5.45837332]
[1617239160385,2.90695,1925.5,1925.4,4.24575363]
[1617239164088,2.90695,1925.5,1925.4,5.27465363]
[1617239164291,2.90695,1925.5,1925.3,4.24338185]
[1617239165189,2.90695,1925.5,1925.2,4.24350575]
[1617239165491,73.749,1925.3,1925.2,4.24350575]
[1617239166591,76.65595,1925.3,1925.2,4.24350575]
[1617239166992,76.65595,1925.3,1925.1,5.45595604]
[1617239168396,76.65595,1925.3,1925.2,4.24353203]
[1617239168800,76.65595,1925.3,1925.1,5.45595604]
[1617239170305,76.65595,1925.3,1925.2,4.2434734]
[1617239170506,76.65595,1925.3,1925.1,5.45595604]
[1617239170906,76.65595,1925.3,1925.1,4.93355604]
[1617239171206,76.65595,1925.3,1925.0,6.6680309]
[1617239171406,76.65595,1925.3,1925.2,0.31869189]
[1617239171807,76.65595,1925.3,1925.1,0.31867157]
[1617239172008,2.90695,1925.3,1925.1,0.31867157]
[1617239172407,2.90695,1925.3,1925.1,6.98599084]
[1617239172606,2.90695,1925.3,1925.2,4.24415]
[1617239173008,2.90695,1925.3,1925.2,4.56199995]
[1617239174811,2.90695,1925.3,1925.2,12.44392686]
[1617239175610,2.90695,1925.3,1925.2,4.56199995]
[1617239175810,2.90695,1925.3,1925.2,3.22479995]
[1617239176413,73.0391,1926.1,1925.2,11.10767775]
[1617239176612,73.0391,1926.1,1925.8,69.0974]
[1617239177317,73.0391,1926.1,1926.0,4.24465058]
[1617239178517,75.94605,1926.1,1926.0,4.24465058]
[1617239180820,75.94605,1926.1,1925.9,6.07048029]
[1617239182521,75.94605,1926.1,1926.0,4.24468881]
[1617239182728,75.94605,1926.1,1925.9,7.28243451]
[1617239183423,75.94605,1926.1,1926.0,4.24433676]
[1617239186328,75.94605,1926.1,1925.9,7.28586539]
[1617239188030,75.94605,1926.1,1926.0,4.2471339]
[1617239189433,75.94605,1926.1,1925.9,6.07289283]
[1617239191033,77.33195,1926.1,1925.9,6.07289283]
[1617239191633,4.29285,1926.1,1925.9,6.07289283]
[1617239191833,4.29285,1926.1,1925.9,1.82560216]
[1617239192033,78.74975,1926.1,1925.9,1.82560216]
[1617239192234,78.74975,1926.1,1925.8,4.24764708]
[1617239192435,78.74975,1926.1,1925.8,6.07357758]
[1617239192637,2.90695,1925.9,1925.8,6.07357758]
[1617239202046,2.90695,1925.9,1925.8,1.8259305]
[1617239202748,2.90695,1925.9,1925.8,2.8526305]
[1617239203146,2.90695,1925.9,1925.8,1.8259305]
[1617239203347,2.90695,1925.9,1925.8,7.28273714]
[1617239203948,2.90695,1925.9,1925.8,5.45680664]
[1617239204348,2.90695,1925.9,1925.8,1.0385]
[1617239204948,2.90695,1925.9,1925.8,6.66533091]
[1617239205149,2.90695,1925.9,1925.8,7.68513091]
[1617239206349,2.90695,1925.9,1925.8,8.00033977]
[1617239206749,2.90695,1925.9,1925.8,1.33500886]
[1617239206949,2.90695,1925.9,1925.8,62.01320886]
[1617239207149,2.90695,1925.9,1925.8,68.67709122]
[1617239207750,2.90695,1925.9,1925.8,71.23336908]
[1617239208754,2.90695,1925.9,1925.8,70.18756908]
[1617239210159,2.90695,1925.9,1925.8,63.52368672]
[1617239210761,2.90695,1925.9,1925.8,64.56148672]
[1617239212961,2.90695,1925.9,1925.8,3.88328672]
[1617239213261,2.90695,1925.9,1925.8,2.0576]
[1617239213462,2.90695,1925.9,1925.7,9.56986921]
[1617239214666,2.90695,1925.9,1925.8,5.45222536]
[1617239216262,2.90695,1925.9,1925.7,9.57075025]
[1617239219264,2.90695,1925.9,1925.8,5.45201904]
[1617239221164,2.90695,1925.9,1925.7,9.5683466]
[1617239222667,2.90695,1925.9,1925.8,5.44746994]
[1617239224170,2.90695,1925.9,1925.7,5.44915683]
[1617239226169,2.90695,1925.9,1925.8,5.44817133]
[1617239226973,2.90695,1925.9,1925.7,7.75156613]
[1617239227573,2.90695,1925.9,1925.8,5.44686935]
[1617239228172,2.90695,1925.9,1925.7,7.75116732]
[1617239228373,2.90695,1925.9,1925.8,5.44611349]
[1617239229375,2.90695,1925.9,1925.8,5.76131046]
[1617239229573,2.90695,1925.9,1925.8,0.31519697]
[1617239230676,2.90695,1925.9,1925.8,6.96644778]
[1617239230875,2.90695,1925.9,1925.8,9.87339778]
[1617239231077,2.90695,1925.9,1925.8,10.92039778]
[1617239231276,2.90695,1925.9,1925.8,9.87339778]
[1617239231479,2.90695,1925.9,1925.8,3.22214697]
[1617239232275,2.90695,1925.9,1925.8,9.87211726]
[1617239234481,2.90695,1925.9,1925.8,3.22214697]
[1617239234678,2.90695,1925.9,1925.8,11.0629112]
[1617239235678,2.90695,1925.9,1925.8,12.1062112]
[1617239235878,2.90695,1925.9,1925.8,11.0629112]
[1617239238880,2.90695,1926.1,1925.8,11.0629112]
[1617239239081,2.90695,1926.1,1925.8,3.22214697]
[1617239239282,2.90695,1926.1,1925.9,0.3130235]
[1617239239481,2.90695,1926.1,1925.9,8.14905011]
[1617239239982,2.90695,1926.1,1926.0,0.31314269]
[1617239240983,2.90695,1926.1,1926.0,3.22009269]
[1617239244286,2.90695,1926.1,1926.0,9.84555137]
[1617239245288,2.90695,1926.1,1926.0,3.22009269]
[1617239245688,2.90695,1926.1,1926.0,9.84482562]
[1617239248597,2.90695,1926.1,1926.0,3.22009269]
[1617239249397,2.90695,1926.1,1926.0,9.8437099]
[1617239254103,2.90695,1926.1,1926.0,3.22009269]
[1617239268023,2.90695,1926.1,1926.0,9.84809217]
[1617239271022,2.90695,1926.1,1926.0,3.22009269]
[1617239271225,2.90695,1926.1,1926.0,4.35689269]
[1617239271422,2.90695,1926.3,1926.1,78.4202]
[1617239271825,2.90695,1926.3,1926.2,0.31144372]
[1617239272025,2.90695,1926.3,1926.2,2.13639942]
[1617239273426,2.90695,1926.5,1926.2,5.04334942]
[1617239273826,2.90695,1926.5,1926.4,6.61626767]
[1617239274027,2.90695,1926.5,1926.4,7.65406767]
[1617239274328,2.90695,1926.5,1926.4,7.96553308]
[1617239274727,2.90695,1926.5,1926.4,1.34926541]
[1617239275128,2.90695,1926.5,1926.4,7.96563106]
[1617239275328,2.90695,1926.5,1926.4,10.87258106]
[1617239275730,2.90695,1926.5,1926.4,4.25621541]
[1617239275928,2.90695,1926.5,1926.4,0.31146541]
[1617239276529,2.90695,1926.5,1926.3,6.61825746]
[1617239276729,2.90695,1926.5,1926.4,0.31186552]
[1617239276930,2.90695,1926.5,1926.4,5.7297238]
[1617239277129,2.90695,1926.5,1926.4,5.41785828]
[1617239278331,2.90695,1926.5,1926.3,5.41709742]
[1617239279032,2.90695,1926.5,1926.4,5.72827996]
[1617239279230,2.90695,1926.5,1926.4,5.4166289]
[1617239279430,2.90695,1926.5,1926.3,5.41466592]
[1617239279830,2.90695,1926.5,1926.4,5.41403325]
[1617239280031,2.90695,1926.5,1926.4,5.72535781]
[1617239281430,2.90695,1926.5,1926.4,8.63230781]
[1617239284031,2.90695,1926.5,1926.4,9.61520781]
[1617239286838,2.90695,1926.5,1926.4,4.20117456]
[1617239287238,2.90695,1926.5,1926.4,9.6138652]
[1617239287839,3.93145,1926.5,1926.4,9.6138652]
[1617239288039,2.90695,1926.5,1926.4,9.6138652]
[1617239288644,2.90695,1926.5,1926.4,4.20117456]
[1617239288942,2.90695,1926.5,1926.4,3.21827456]
[1617239289142,2.90695,1926.5,1926.4,9.83634908]
[1617239290143,2.90695,1926.5,1926.4,3.21827456]
[1617239290545,2.90695,1926.5,1926.4,9.83750987]
[1617239290945,2.90695,1926.5,1926.4,3.21827456]
[1617239291445,2.90695,1926.5,1926.4,9.8382905]
[1617239292744,3.94515,1926.5,1926.4,9.8382905]
[1617239292945,2.90695,1926.5,1926.4,9.8382905]
[1617239293546,2.90695,1926.5,1926.4,3.21827456]
[1617239298953,3.94195,1926.5,1926.4,9.8348292]
[1617239299151,2.90695,1926.5,1926.4,9.8348292]
[1617239299651,2.90695,1926.5,1926.4,3.21827456]
[1617239308557,2.90695,1926.5,1926.4,4.41707456]
[1617239309358,65.9468,1927.6,1926.4,4.41707456]
[1617239309558,65.9468,1927.6,1927.5,63.549]
[1617239309758,68.85375,1927.6,1927.5,63.549]
[1617239321072,69.90235,1927.6,1927.5,63.549]
[1617239322273,68.85375,1927.6,1927.5,63.549]
[1617239324578,69.88615,1927.6,1927.5,63.549]
[1617239324977,68.85375,1927.6,1927.5,63.549]
[1617239325979,2.90695,1927.6,1927.4,2.90695]
[1617239328682,2.90695,1927.6,1927.4,7.11437867]
[1617239329282,2.90695,1927.6,1927.5,4.2068133]
[1617239329686,3.95465,1927.6,1927.5,4.2068133]
[1617239330084,2.90695,1927.6,1927.5,4.2068133]
[1617239331087,3.94665,1927.6,1927.5,4.2068133]
[1617239331284,2.90695,1927.6,1927.5,4.2068133]
[1617239332885,2.90695,1927.6,1927.4,2.90695]
[1617239333887,2.90695,1927.6,1927.4,7.10740807]
[1617239336088,2.90695,1927.6,1927.4,2.90695]
[1617239339092,2.90695,1927.6,1927.4,7.10903127]
[1617239339292,2.90695,1927.6,1927.4,8.22923127]
[1617239339493,2.90695,1927.6,1927.4,4.02715]
[1617239339693,2.90695,1927.6,1927.4,8.2181701]
[1617239340095,2.90695,1927.6,1927.4,4.02715]
[1617239340294,2.90695,1927.6,1927.4,2.90695]
[1617239340994,2.90695,1927.6,1927.4,7.09083404]
[1617239341397,2.90695,1927.6,1927.4,2.90695]
[1617239341594,2.90695,1927.6,1927.5,79.0279]
[1617239342297,2.90695,1927.6,1927.5,80.85191893]
[1617239342699,2.90695,1927.6,1927.5,1.82401893]
[1617239343300,2.90695,1927.6,1927.4,7.09368521]
[1617239343699,2.90695,1927.6,1927.4,2.90695]
[1617239344900,2.90695,1927.6,1927.5,70.0813]
[1617239345401,2.90695,1927.6,1927.5,71.90531014]
[1617239346302,3.95045,1927.6,1927.5,71.90531014]
[1617239346501,2.90695,1927.6,1927.5,71.90531014]
[1617239348203,2.90695,1927.6,1927.5,1.82401014]
[1617239348602,2.90695,1927.6,1927.4,2.90695]
[1617239350607,13.0,1927.7,1927.4,2.90695]
[1617239351004,14.0326,1927.7,1927.4,2.90695]
[1617239351206,13.0,1927.7,1927.4,2.90695]
[1617239351604,13.0,1927.7,1927.4,7.08999632]
[1617239351803,13.0,1927.7,1927.4,2.90695]
[1617239352204,13.0,1927.7,1927.6,2.90695]
[1617239357210,13.0,1927.7,1927.6,3.22256028]
[1617239358311,13.0,1927.7,1927.6,2.90695]
[1617239358711,13.0,1927.7,1927.6,3.2225036]
[1617239359110,13.0,1927.7,1927.6,4.3508036]
[1617239359310,13.0,1927.7,1927.6,8.50339842]
[1617239359910,13.0,1927.7,1927.6,4.3508036]
[1617239360713,13.0,1927.7,1927.6,3.2225036]
[1617239363215,13.0,1927.7,1927.6,9.73176354]
[1617239364213,13.0,1927.7,1927.6,3.2225036]
[1617239364614,13.0,1927.7,1927.6,5.0459951]
[1617239365014,13.0,1927.7,1927.6,10.37738662]
[1617239366417,13.0,1927.7,1927.6,5.0459951]
[1617239366815,13.0,1927.7,1927.6,9.19451426]
[1617239368218,15.90695,1927.7,1927.6,5.0459951]
[1617239368717,13.0,1927.7,1927.6,9.19239585]
[1617239369520,13.0,1927.7,1927.6,5.0459951]
[1617239369918,13.0,1927.7,1927.6,9.19266097]
[1617239370219,15.90695,1927.7,1927.6,9.19266097]
[1617239371021,15.90695,1927.7,1927.6,7.36916947]
[1617239371419,13.0,1927.7,1927.6,3.2225036]
[1617239372720,13.0,1927.7,1927.6,8.55065656]
[1617239374123,13.0,1927.7,1927.6,3.2225036]
[1617239375225,13.0,1927.7,1927.6,83.0390036]
[1617239375625,13.0,1927.7,1927.6,84.86267177]
[1617239376729,13.0,1927.7,1927.6,88.99895411]
[1617239377329,13.0,1927.7,1927.6,84.86267177]
[1617239377729,13.0,1927.7,1927.6,90.1843975]
[1617239378634,13.0,1927.7,1927.6,10.3678975]
[1617239379234,13.0,1927.7,1927.6,8.54422933]
[1617239381937,13.0,1927.7,1927.6,3.2225036]
[1617239382339,13.0,1927.7,1927.6,8.53612798]
[1617239384138,13.0,1927.7,1927.6,4.2052036]
[1617239384939,13.0,1927.7,1927.6,9.52213941]
[1617239385138,13.0,1927.7,1927.6,4.2052036]
[1617239385739,13.0,1927.7,1927.6,9.51932488]
[1617239385939,13.0,1927.7,1927.6,4.2052036]
[1617239387540,13.0,1927.7,1927.6,10.70052328]
[1617239387740,14.0495,1927.7,1927.6,10.70052328]
[1617239387939,13.0,1927.7,1927.6,10.70052328]
[1617239388140,13.0,1927.7,1927.6,4.2052036]
[1617239388339,13.0,1927.7,1927.6,3.2225036]
[1617239388539,13.0,1927.7,1927.6,9.72354211]
[1617239389339,13.0,1927.7,1927.6,3.2225036]
[1617239391241,13.0,1927.7,1927.6,9.72920228]
[1617239391839,13.0,1927.7,1927.6,3.2225036]
[1617239393040,13.0,1927.7,1927.6,9.73728555]
[1617239393241,14.2234,1927.7,1927.6,9.73728555]
[1617239393641,14.2234,1927.7,1927.6,8.55384825]
[1617239394042,14.2234,1927.7,1927.6,3.2225036]
[1617239394442,17.13035,1927.7,1927.6,7.36996931]
[1617239395242,17.13035,1927.7,1927.6,3.2225036]
[1617239395441,17.13035,1927.7,1927.5,5.9675027]
[1617239396243,69.7495,1927.5,1927.2,4.14520487]
[1617239396443,4.17115,1927.3,1927.2,4.14520487]
[1617239396646,4.17115,1927.3,1927.2,74.19307024]
[1617239397043,4.17115,1927.3,1927.2,76.01717587]
[1617239397243,4.17115,1927.3,1927.2,6.28507587]
[1617239397844,4.17115,1927.3,1927.2,4.46097024]
[1617239398044,4.17115,1927.3,1927.2,79.17427024]
[1617239398445,4.17115,1927.3,1927.2,80.99841241]
[1617239399753,4.17115,1927.3,1927.2,76.85320754]
[1617239400447,4.17115,1927.3,1927.2,79.76015754]
[1617239400647,4.17115,1927.3,1927.2,76.85320754]
[1617239401648,4.17115,1927.3,1927.2,81.00753807]
[1617239401848,4.17115,1927.3,1927.2,80.6917727]
[1617239402047,4.17115,1927.3,1927.2,76.53744217]
[1617239403450,2.90695,1927.3,1927.2,76.53744217]
[1617239404751,2.90695,1927.3,1927.2,1.82414217]
[1617239405152,2.90695,1927.3,1927.2,4.15412258]
[1617239405551,2.90695,1927.3,1927.1,4.15462766]
[1617239405953,2.90695,1927.3,1927.2,4.15637334]
[1617239406352,2.90695,1927.3,1927.2,2.90695]
[1617239406551,2.90695,1927.3,1927.2,7.06325257]
[1617239406954,2.90695,1927.3,1927.2,4.15630257]
[1617239407753,2.90695,1927.3,1927.2,0.31450831]
[1617239408352,2.90695,1927.3,1927.2,3.22145831]
[1617239409753,2.90695,1927.3,1927.2,0.31450831]
[1617239410956,2.90695,1927.3,1927.1,5.34549704]
[1617239411258,2.90695,1927.3,1927.2,0.31476723]
[1617239411657,2.90695,1927.3,1927.2,68.0155]
[1617239412562,2.90695,1927.3,1927.2,69.83967676]
[1617239412862,2.90695,1927.3,1927.2,73.99756302]
[1617239413461,2.90695,1927.3,1927.2,5.98206302]
[1617239413660,2.90695,1927.3,1927.2,1.82417676]
[1617239413860,2.90695,1927.3,1927.1,4.16036645]
[1617239414061,3.94925,1927.3,1927.1,4.16036645]
[1617239414665,3.94925,1927.3,1927.2,81.687]
[1617239414964,3.94925,1927.3,1927.2,87.6699342]
[1617239418274,3.94925,1927.3,1927.2,83.51129159]
[1617239420077,2.90695,1927.3,1927.2,83.51129159]
[1617239421279,2.90695,1927.3,1927.2,81.687]
[1617239426688,2.90695,1927.3,1926.9,4.1581396]
[1617239427491,2.90695,1927.3,1927.0,4.16115816]
[1617239428090,2.90695,1927.3,1927.0,5.00815816]
[1617239428690,13.0,1927.7,1927.0,7.91510816]
[1617239428691,2.90695,1927.1,1927.0,7.91510816]
[1617239428891,2.90695,1927.1,1927.0,70.94170816]
[1617239429494,2.90695,1927.1,1927.0,72.7661312]
[1617239429693,2.90695,1927.1,1927.0,68.60497304]
[1617239429891,2.90695,1927.1,1927.0,65.69802304]
[1617239430995,2.90695,1927.1,1927.0,69.85776562]
[1617239433803,2.90695,1927.1,1927.0,65.69802304]
[1617239438810,63.0266,1927.2,1927.0,65.69802304]
[1617239439311,2.90695,1927.1,1927.0,63.8736]
[1617239440114,2.90695,1927.1,1927.0,0.847]
[1617239440316,2.90695,1927.1,1926.9,4.16085127]
[1617239441314,2.90695,1927.1,1927.0,2.90695]
[1617239441718,2.90695,1927.1,1927.0,7.07120758]
[1617239446726,2.8875151,1927.1,1927.0,7.07120758]
[1617239449529,2.8875151,1927.1,1927.0,2.90695]
[1617239452934,2.8875151,1927.1,1927.0,3.22194425]
[1617239453133,2.8875151,1927.1,1927.0,7.38605937]
[1617239463650,13.0,1927.7,1927.0,7.38605937]
[1617239464050,13.0,1927.7,1927.0,3.22194425]
[1617239464250,13.0,1927.7,1927.1,0.31598414]
[1617239464452,13.0,1927.7,1927.3,4.16195204]
[1617239464750,13.0,1927.7,1927.4,0.3156516]
[1617239465149,13.0,1927.7,1927.4,4.4753922]
[1617239465550,13.0,1927.7,1927.6,2.90695]
[1617239465750,13.0,1927.7,1927.6,4.03135]
[1617239465949,13.0,1927.7,1927.6,4.34696331]
[1617239466350,13.0,1927.7,1927.6,8.50412635]
[1617239468352,13.0,1927.7,1927.6,4.34696331]
[1617239468550,13.0,1927.7,1927.6,3.22256331]
[1617239468949,13.0,1927.7,1927.6,0.31561331]
[1617239468950,99.7247,1927.7,1927.6,0.31561331]
[1617239469549,102.63165,1927.7,1927.6,2.13957248]
[1617239471654,102.63165,1927.7,1927.6,5.04652248]
[1617239472255,102.63165,1927.7,1927.6,2.13957248]
[1617239474055,102.63165,1927.7,1927.6,1.82395917]
[1617239475656,102.63165,1927.7,1927.6,4.73090917]